bitfinex-derivatives/quotes_BTCF0:USTF0_20250129
["timestamp","ask_amount","ask_price","bid_price","bid_amount"]
[1738183747587,0.36094397,104270.0,104260.0,0.54092328]
[1738183747795,0.00014397,104270.0,104260.0,0.54092328]
[1738183747988,0.00014397,104270.0,104260.0,1.09042328]
[1738183748181,0.00014397,104270.0,104260.0,0.72962328]
[1738183748378,1e-08,104270.0,104260.0,0.72962328]
[1738183749082,1e-08,104270.0,104260.0,1.09042328]
[1738183749695,0.00800001,104270.0,104260.0,1.09142328]
[1738183750284,0.00900001,104270.0,104260.0,1.09142328]
[1738183753586,0.00900001,104270.0,104260.0,1.10339501]
[1738183754385,0.00900001,104270.0,104260.0,0.74259501]
[1738183754694,0.56161901,104270.0,104260.0,0.55389501]
[1738183754995,0.56161901,104270.0,104260.0,0.01297173]
[1738183755188,0.56161901,104270.0,104260.0,0.001]
[1738183755386,0.94991901,104270.0,104260.0,0.001]
[1738183755586,0.191856,104250.0,104240.0,0.22418474]
[1738183755889,0.913456,104250.0,104240.0,0.34418474]
[1738183756397,0.913456,104250.0,104240.0,0.22418474]
[1738183756781,0.913456,104250.0,104240.0,0.23318474]
[1738183757091,0.191874,104240.0,104230.0,0.28001156]
[1738183757297,0.552674,104240.0,104230.0,0.27857281]
[1738183757494,0.191892,104230.0,104220.0,0.5018504]
[1738183757686,0.552692,104230.0,104220.0,0.5018504]
[1738183758689,0.748992,104230.0,104220.0,0.5018504]
[1738183758894,0.90807828,104230.0,104220.0,0.5018504]
[1738183759191,0.191911,104220.0,104210.0,0.33320503]
[1738183759387,0.552711,104220.0,104210.0,0.33320503]
[1738183761199,0.742911,104220.0,104210.0,0.33320503]
[1738183761497,0.743911,104220.0,104210.0,0.34320503]
[1738183762592,0.90299728,104220.0,104210.0,0.34320503]
[1738183762781,0.90299728,104220.0,104210.0,0.27830807]
[1738183762782,1.20299728,104220.0,104210.0,0.27830807]
[1738183764082,0.743911,104220.0,104210.0,0.27830807]
[1738183764484,1.20299728,104220.0,104210.0,0.27830807]
[1738183764691,1.20299728,104220.0,104210.0,0.14605707]
[1738183765091,0.90299728,104220.0,104210.0,0.14605707]
[1738183765399,0.743911,104220.0,104210.0,0.14605707]
[1738183765694,0.553711,104220.0,104210.0,0.49207235]
[1738183765887,0.748996,104230.0,104210.0,0.39514335]
[1738183766083,0.3608,104230.0,104220.0,0.35099728]
[1738183766294,0.55282297,104240.0,104230.0,0.191892]
[1738183766584,0.00014397,104240.0,104230.0,0.291892]
[1738183766789,0.00014397,104240.0,104230.0,0.97086456]
[1738183766995,0.3608,104270.0,104260.0,0.191837]
[1738183767191,0.191837,104260.0,104250.0,0.35092728]
[1738183767391,0.552637,104260.0,104250.0,0.191841]
[1738183767594,0.3608,104260.0,104240.0,0.15908628]
[1738183767796,0.3608,104260.0,104240.0,0.35095028]
[1738183767797,0.552656,104250.0,104240.0,0.35095028]
[1738183768097,0.552656,104250.0,104240.0,0.191864]
[1738183768286,0.191874,104240.0,104230.0,0.00014397]
[1738183768491,0.552674,104240.0,104230.0,0.00014397]
[1738183769295,0.71176028,104240.0,104230.0,0.00014397]
[1738183769597,0.191911,104220.0,104210.0,0.1359131]
[1738183769799,0.913511,104220.0,104210.0,0.1359131]
[1738183771395,0.913511,104220.0,104210.0,0.1399131]
[1738183772094,0.92541038,104220.0,104210.0,0.1399131]
[1738183772294,1.11531038,104220.0,104210.0,0.1399131]
[1738183772498,1.6607163,104220.0,104210.0,0.1399131]
[1738183772695,1.6617163,104220.0,104210.0,0.1429131]
[1738183773490,1.3617163,104220.0,104210.0,0.1429131]
[1738183774299,1.6617163,104220.0,104210.0,0.1429131]
[1738183775201,1.3617163,104220.0,104210.0,0.1429131]
[1738183775394,1.11631038,104220.0,104210.0,0.1429131]
[1738183775793,1.6617163,104220.0,104210.0,0.1429131]
[1738183777002,1.3617163,104220.0,104210.0,0.1429131]
[1738183777194,1.11631038,104220.0,104210.0,0.1429131]
[1738183777395,0.92641038,104220.0,104210.0,0.1429131]
[1738183777907,0.92641038,104220.0,104210.0,0.3471131]
[1738183778205,0.914511,104220.0,104210.0,0.5390421]
[1738183778503,0.914511,104220.0,104210.0,0.5790421]
[1738183778900,0.914511,104220.0,104210.0,0.3471131]
[1738183779297,0.914511,104220.0,104210.0,0.2112]
[1738183779497,0.914511,104220.0,104210.0,0.007]
[1738183783105,0.914511,104220.0,104210.0,0.117]
[1738183783297,0.914511,104220.0,104210.0,0.308929]
[1738183783802,0.914511,104220.0,104210.0,0.496429]
[1738183784303,1.00013936,104220.0,104210.0,0.1945]
[1738183784502,1.00013936,104220.0,104210.0,0.007]
[1738183784805,0.08662836,104220.0,104210.0,0.388929]
[1738183785107,0.63933936,104220.0,104210.0,0.007]
[1738183786507,0.88474528,104220.0,104210.0,0.007]
[1738183786706,0.63933936,104220.0,104210.0,0.007]
[1738183787804,0.86573482,104220.0,104210.0,0.007]
[1738183788311,0.86573482,104220.0,104210.0,0.187]
[1738183788509,0.00462382,104220.0,104210.0,0.935829]
[1738183788704,0.00014397,104230.0,104220.0,0.191911]
[1738183789018,0.009,104240.0,104230.0,0.191892]
[1738183789204,0.009,104240.0,104230.0,0.762692]
[1738183789411,0.19548739,104250.0,104240.0,0.191874]
[1738183789603,0.552637,104260.0,104250.0,0.191856]
[1738183789806,0.3608,104260.0,104250.0,0.251856]
[1738183790208,0.3608,104260.0,104250.0,0.451556]
[1738183790411,0.552637,104260.0,104250.0,0.391556]
[1738183790607,0.191837,104260.0,104250.0,0.391556]
[1738183790804,0.191837,104260.0,104250.0,0.441556]
[1738183791004,0.559637,104260.0,104250.0,0.442556]
[1738183791205,0.198837,104260.0,104250.0,0.442556]
[1738183791407,0.007,104260.0,104250.0,0.442556]
[1738183792411,0.207837,104260.0,104250.0,0.393556]
[1738183792606,0.3768,104260.0,104250.0,0.634056]
[1738183792813,0.3768,104260.0,104250.0,0.830056]
[1738183792814,0.016,104260.0,104250.0,0.830056]
[1738183793309,0.3708,104260.0,104250.0,0.829056]
[1738183793610,0.01,104260.0,104250.0,0.829056]
[1738183793805,0.01,104260.0,104250.0,0.84056765]
[1738183794008,0.009,104260.0,104250.0,0.84356765]
[1738183794398,0.97704229,104270.0,104250.0,0.84256765]
[1738183794602,0.97704229,104270.0,104250.0,1.00656385]
[1738183794809,0.3608,104260.0,104250.0,1.00656385]
[1738183795008,0.552625,104270.0,104250.0,1.00656385]
[1738183795612,0.557625,104270.0,104250.0,1.00156385]
[1738183795815,0.552637,104260.0,104250.0,0.95156385]
[1738183796211,0.005,104270.0,104260.0,0.191837]
[1738183796407,0.19998323,104290.0,104280.0,0.1918]
[1738183796606,0.19998323,104290.0,104280.0,1.0705924]
[1738183797518,0.4608,104300.0,104280.0,1.0794924]
[1738183797714,0.4608,104300.0,104290.0,0.3507782]
[1738183798610,0.1,104300.0,104290.0,0.84748011]
[1738183798816,0.3608,104320.0,104310.0,0.191745]
[1738183799018,0.3608,104320.0,104310.0,0.48664311]
[1738183799319,0.3608,104320.0,104310.0,0.43664311]
[1738183799618,0.3608,104320.0,104310.0,0.47664311]
[1738183799912,0.552527,104320.0,104300.0,0.24504208]
[1738183800214,0.3608,104310.0,104300.0,0.00014397]
[1738183800413,0.552545,104310.0,104300.0,0.00014397]
[1738183800613,0.006,104320.0,104310.0,0.191745]
[1738183800915,0.11409325,104340.0,104330.0,0.191709]
[1738183801116,0.1980614,104360.0,104350.0,0.191672]
[1738183801321,0.1980614,104360.0,104350.0,1.00737011]
[1738183801508,0.1980614,104360.0,104350.0,0.43657011]
[1738183802219,0.1980614,104360.0,104350.0,0.79737011]
[1738183802417,0.1980614,104360.0,104350.0,0.91737011]
[1738183803009,0.2020614,104360.0,104350.0,0.91837011]
[1738183803518,0.191601,104390.0,104370.0,0.191627]
[1738183803719,0.652387,104400.0,104380.0,0.191614]
[1738183803907,0.1,104400.0,104390.0,0.24489811]
[1738183804105,0.1,104400.0,104390.0,0.83729611]
[1738183804310,0.1,104400.0,104390.0,0.79729611]
[1738183805619,0.1,104400.0,104390.0,0.79829611]
[1738183805620,0.108,104400.0,104390.0,0.79829611]
[1738183805922,0.108,104400.0,104390.0,0.85829611]
[1738183806217,0.42441729,104420.0,104410.0,0.191562]
[1738183806419,0.42441729,104420.0,104410.0,0.79726011]
[1738183806607,0.42441729,104420.0,104410.0,1.19806011]
[1738183807003,0.25398972,104430.0,104420.0,0.191543]
[1738183807004,0.20039642,104430.0,104420.0,0.191543]
[1738183807213,0.20039642,104430.0,104420.0,0.43644111]
[1738183807818,0.20039642,104430.0,104420.0,0.60569811]
[1738183808212,0.20039642,104430.0,104420.0,0.79724111]
[1738183808413,0.552311,104440.0,104420.0,0.79824111]
[1738183809205,0.191511,104440.0,104420.0,0.79824111]
[1738183810225,0.552311,104440.0,104420.0,0.79824111]
[1738183810525,0.552311,104440.0,104420.0,0.79924111]
[1738183811019,0.552311,104440.0,104420.0,0.60769811]
[1738183811216,0.552325,104430.0,104420.0,0.002]
[1738183811818,0.191525,104430.0,104420.0,0.002]
[1738183812617,0.552325,104430.0,104420.0,0.002]
[1738183812819,0.191562,104410.0,104400.0,0.00014397]
[1738183813012,0.191562,104410.0,104380.0,0.00143681]
[1738183813013,0.191598,104390.0,104380.0,0.00143681]
[1738183813208,0.7216,104390.0,104340.0,0.98973559]
[1738183813418,0.191672,104350.0,104340.0,0.24633559]
[1738183813722,0.3608,104370.0,104340.0,0.28633559]
[1738183813922,0.191672,104350.0,104340.0,0.25731916]
[1738183814118,0.552472,104350.0,104340.0,0.01242105]
[1738183814313,0.191672,104350.0,104340.0,0.01242105]
[1738183814619,0.36094397,104370.0,104350.0,0.191658]
[1738183815020,0.00014397,104370.0,104360.0,0.3608]
[1738183815228,0.00014397,104370.0,104360.0,0.191653]
[1738183815722,0.00014397,104370.0,104360.0,0.79735111]
[1738183816117,0.00014397,104370.0,104360.0,0.80635111]
[1738183816527,0.00014397,104370.0,104360.0,0.44555111]
[1738183816927,0.00014397,104370.0,104360.0,0.44955111]
[1738183818624,0.55257897,104370.0,104360.0,0.013]
[1738183819042,0.19177897,104370.0,104360.0,0.25789811]
[1738183819221,0.00014397,104370.0,104360.0,0.44955111]
[1738183820222,0.55257897,104370.0,104360.0,0.02414159]
[1738183820425,0.55257897,104370.0,104360.0,0.013]
[1738183820729,0.191653,104360.0,104340.0,0.00158145]
[1738183820925,0.552472,104350.0,104340.0,0.00158145]
[1738183821229,0.552472,104350.0,104340.0,0.00014397]
[1738183821725,0.191727,104320.0,104310.0,0.00010792]
[1738183822026,0.191745,104310.0,104300.0,0.34633607]
[1738183822322,0.552545,104310.0,104300.0,0.34633607]
[1738183823119,0.552545,104310.0,104300.0,0.46633607]
[1738183823316,0.552545,104310.0,104300.0,0.10443796]
[1738183824015,0.191764,104300.0,104290.0,0.00014397]
[1738183824317,0.552564,104300.0,104290.0,0.20297357]
[1738183824513,0.552564,104300.0,104290.0,0.19192597]
[1738183824718,0.3608,104310.0,104290.0,0.23192597]
[1738183825017,0.3608,104310.0,104290.0,0.19192597]
[1738183825018,0.3608,104300.0,104290.0,0.19192597]
[1738183825214,0.55455,104310.0,104290.0,0.19192597]
[1738183825417,0.3608,104300.0,104290.0,0.19192597]
[1738183825624,0.552564,104300.0,104290.0,0.19192597]
[1738183826131,0.552564,104300.0,104290.0,0.00014397]
[1738183826543,0.552564,104300.0,104290.0,0.19292597]
[1738183826728,0.552564,104300.0,104290.0,0.19592597]
[1738183826928,0.558548,104310.0,104300.0,0.191764]
[1738183827127,0.006,104310.0,104300.0,0.47666211]
[1738183827337,0.006,104310.0,104300.0,0.83746211]
[1738183827823,0.006,104310.0,104300.0,0.47666211]
[1738183828025,0.36094397,104320.0,104300.0,0.43666211]
[1738183828227,0.00014397,104320.0,104300.0,0.36489811]
[1738183828417,0.36094397,104320.0,104310.0,0.191745]
[1738183829038,0.36094397,104320.0,104310.0,0.241745]
[1738183829326,0.00514397,104320.0,104310.0,0.602545]
[1738183829528,0.552454,104360.0,104340.0,0.191675]
[1738183829716,0.3608,104350.0,104340.0,0.39169]
[1738183829916,0.3608,104350.0,104310.0,0.60669811]
[1738183830122,0.191709,104330.0,104320.0,0.191724]
[1738183830323,0.552509,104330.0,104320.0,0.191724]
[1738183830533,0.552509,104330.0,104310.0,0.43764011]
[1738183830727,0.3608,104340.0,104330.0,0.191703]
[1738183830919,0.00014397,104340.0,104330.0,0.65660111]
[1738183831833,0.00014397,104340.0,104330.0,1.01740111]
[1738183832031,0.00214397,104340.0,104330.0,1.01840111]
[1738183832735,0.002,104360.0,104350.0,0.191672]
[1738183833033,0.3608,104370.0,104360.0,0.191653]
[1738183833222,0.3608,104370.0,104350.0,0.60569811]
[1738183833424,0.3608,104360.0,104350.0,0.43656611]
[1738183833630,0.552437,104370.0,104350.0,0.84736611]
[1738183833836,0.191653,104360.0,104350.0,0.43656611]
[1738183834132,0.552453,104360.0,104350.0,0.43956611]
[1738183834828,0.552453,104360.0,104350.0,0.003]
[1738183835034,0.552453,104360.0,104350.0,0.009]
[1738183835627,0.552453,104360.0,104350.0,0.200672]
[1738183835824,0.552453,104360.0,104350.0,0.197672]
[1738183836136,0.552453,104360.0,104350.0,0.200672]
[1738183836337,0.002,104370.0,104360.0,0.191653]
[1738183836530,0.002,104370.0,104360.0,0.301653]
[1738183836739,0.55242,104380.0,104360.0,0.231653]
[1738183836931,0.3608,104370.0,104360.0,0.191653]
[1738183837131,0.552447,104370.0,104350.0,0.44756211]
[1738183837331,0.191647,104370.0,104360.0,0.191653]
[1738183837634,0.552447,104370.0,104350.0,0.43856711]
[1738183837842,0.552447,104370.0,104350.0,0.54456711]
[1738183838039,0.552447,104370.0,104360.0,0.191653]
[1738183838338,0.554447,104370.0,104360.0,0.191653]
[1738183838635,0.002,104370.0,104360.0,0.301653]
[1738183838835,0.004,104370.0,104360.0,0.301653]
[1738183839242,0.002,104370.0,104360.0,0.301653]
[1738183839439,0.004,104370.0,104360.0,0.302653]
[1738183839829,0.002,104370.0,104360.0,0.302653]
[1738183840140,0.002,104370.0,104360.0,0.304653]
[1738183840742,0.002,104370.0,104360.0,0.31918159]
[1738183840930,0.55242,104380.0,104360.0,0.31818159]
[1738183841238,0.55242,104380.0,104360.0,0.32418159]
[1738183841440,0.55242,104380.0,104360.0,0.68498159]
[1738183841639,0.755402,104390.0,104370.0,0.191635]
[1738183841836,0.3608,104380.0,104370.0,0.4494267]
[1738183842036,0.755402,104390.0,104370.0,0.6410547]
[1738183842233,0.3628,104380.0,104370.0,0.6410547]
[1738183842636,0.003,104380.0,104370.0,1.0018547]
[1738183843332,0.002,104380.0,104370.0,1.0018547]
[1738183843534,0.004,104380.0,104370.0,1.0018547]
[1738183843733,0.002,104380.0,104370.0,0.98732611]
[1738183844040,0.002,104380.0,104370.0,0.98832611]
[1738183844336,0.002,104380.0,104370.0,0.99332611]
[1738183844539,0.14719846,104390.0,104380.0,0.191617]
[1738183844741,0.09511609,104400.0,104390.0,0.191598]
[1738183844938,0.09511609,104400.0,104390.0,1.01729611]
[1738183845932,0.10011609,104400.0,104390.0,1.01829611]
[1738183846138,0.10011609,104400.0,104390.0,0.79829611]
[1738183846341,0.10011609,104400.0,104390.0,0.593398]
[1738183847131,0.10211609,104400.0,104390.0,0.594398]
[1738183847349,0.10211609,104400.0,104390.0,0.83929611]
[1738183848339,1.0840887,104440.0,104430.0,0.191525]
[1738183848542,0.7232887,104440.0,104430.0,0.191525]
[1738183848844,0.7232887,104440.0,104430.0,0.291525]
[1738183849147,0.3373887,104440.0,104430.0,0.48642311]
[1738183849636,0.1974,104440.0,104430.0,0.192525]
[1738183849835,0.1974,104440.0,104430.0,0.242525]
[1738183850245,0.749707,104440.0,104430.0,0.001]
[1738183850943,0.749707,104440.0,104430.0,0.002]
[1738183851542,0.5582,104440.0,104420.0,0.00014397]
[1738183851740,0.552325,104430.0,104420.0,0.00014397]
[1738183851940,0.191543,104420.0,104410.0,0.0107643]
[1738183852139,0.191562,104410.0,104400.0,0.00143654]
[1738183852438,0.191562,104410.0,104400.0,0.24301654]
[1738183852642,0.191562,104410.0,104400.0,0.19158]
[1738183852834,0.191562,104410.0,104400.0,0.24158]
[1738183853440,0.93049197,104420.0,104400.0,0.24158]
[1738183853841,0.191562,104410.0,104400.0,0.25236276]
[1738183854040,0.93049197,104420.0,104400.0,0.24158]
[1738183854244,0.93049197,104420.0,104400.0,0.05]
[1738183854544,0.93049197,104420.0,104410.0,0.191562]
[1738183854745,0.36094397,104420.0,104410.0,0.55646011]
[1738183854951,0.00014397,104420.0,104410.0,0.55646011]
[1738183855154,0.00014397,104420.0,104410.0,0.91726011]
[1738183855842,0.00014397,104420.0,104410.0,0.55646011]
[1738183856345,0.55248697,104420.0,104410.0,0.55646011]
[1738183856559,0.55248697,104420.0,104410.0,0.24489811]
[1738183856847,0.00014397,104420.0,104410.0,0.46489811]
[1738183857045,0.00014397,104420.0,104410.0,1.01726011]
[1738183857243,0.00114397,104420.0,104410.0,1.01826011]
[1738183857443,0.00114397,104420.0,104410.0,0.67231566]
[1738183858039,0.19268697,104420.0,104410.0,0.26075366]
[1738183858239,0.19268697,104420.0,104410.0,0.01585555]
[1738183858551,0.55348697,104420.0,104410.0,0.06585555]
[1738183858943,0.55348697,104420.0,104410.0,0.01585555]
[1738183859355,0.55348697,104420.0,104410.0,0.001]
[1738183861958,0.19158,104400.0,104390.0,0.19174197]
[1738183862256,0.1932,104410.0,104400.0,0.19158]
[1738183862453,0.1932,104410.0,104400.0,0.30158]
[1738183863858,0.384764,104410.0,104400.0,0.126]
[1738183864063,0.1932,104410.0,104400.0,0.68138]
[1738183864355,0.00014397,104420.0,104410.0,0.191562]
[1738183864655,0.191507,104440.0,104430.0,0.191519]
[1738183864856,0.3608,104440.0,104430.0,0.241519]
[1738183865048,0.552294,104450.0,104430.0,0.241519]
[1738183865255,0.3608,104440.0,104430.0,0.241519]
[1738183865960,0.552291,104450.0,104430.0,0.241519]
[1738183866155,0.3608,104450.0,104430.0,0.241519]
[1738183866355,0.191525,104430.0,104420.0,0.00014397]
[1738183866653,0.552325,104430.0,104420.0,0.00014397]
[1738183866861,1.142125,104430.0,104420.0,1e-08]
[1738183867760,1.144125,104430.0,104420.0,0.00100001]
[1738183869560,0.191562,104410.0,104400.0,0.39728585]
[1738183869863,0.552347,104420.0,104410.0,0.191562]
[1738183870165,0.5918,104430.0,104420.0,0.191543]
[1738183870350,0.1971,104430.0,104420.0,0.65644111]
[1738183870546,0.002,104430.0,104420.0,0.82669811]
[1738183870752,0.002,104430.0,104420.0,1.06612611]
[1738183871151,0.11434845,104440.0,104430.0,0.191525]
[1738183871351,0.11434845,104440.0,104430.0,0.401525]
[1738183871652,0.47514845,104440.0,104430.0,0.4161678]
[1738183872157,0.11434845,104440.0,104430.0,0.7769678]
[1738183872852,0.11434845,104440.0,104430.0,0.4161678]
[1738183873148,0.11434845,104440.0,104430.0,0.7769678]
[1738183873355,0.47514845,104440.0,104430.0,0.4161678]
[1738183873652,0.47514845,104440.0,104430.0,0.401525]
[1738183874048,0.11834845,104440.0,104430.0,0.402525]
[1738183874660,0.67065545,104440.0,104430.0,0.001]
[1738183874864,0.55645097,104440.0,104430.0,0.16804217]
[1738183875065,1.13265097,104440.0,104430.0,0.16804217]
[1738183875360,1.13265097,104440.0,104430.0,0.16785913]
[1738183875958,0.191525,104430.0,104420.0,0.49864605]
[1738183876163,0.552325,104430.0,104420.0,0.79354416]
[1738183876461,0.552325,104430.0,104420.0,0.93508716]
[1738183876762,0.552325,104430.0,104420.0,0.49864605]
[1738183877154,0.552325,104430.0,104420.0,0.50464605]
[1738183878074,0.552325,104430.0,104420.0,0.50764605]
[1738183878661,0.6608,104430.0,104410.0,0.00014397]
[1738183878871,0.191562,104410.0,104400.0,0.21046315]
[1738183879072,0.3608,104430.0,104400.0,0.56536126]
[1738183879259,0.3608,104430.0,104420.0,0.191543]
[1738183879464,1.13793458,104440.0,104430.0,0.191525]
[1738183879765,1.49793457,104440.0,104430.0,0.191525]
[1738183880263,1.49793457,104440.0,104420.0,0.19268297]
[1738183880264,0.191525,104430.0,104420.0,0.19268297]
[1738183880467,0.552325,104430.0,104420.0,0.19268297]
[1738183880664,0.552325,104430.0,104420.0,0.00114397]
[1738183880965,0.002,104430.0,104420.0,0.89838508]
[1738183881361,0.11434845,104450.0,104440.0,0.191507]
[1738183881664,0.11434845,104450.0,104440.0,1.00720511]
[1738183881870,0.14113267,104450.0,104440.0,1.00720511]
[1738183882556,0.33762067,104450.0,104440.0,0.211]
[1738183882756,0.14613267,104450.0,104440.0,0.402507]
[1738183882961,0.50693267,104450.0,104440.0,0.402507]
[1738183883162,0.33762067,104450.0,104440.0,0.402507]
[1738183883367,0.14613267,104450.0,104440.0,0.763307]
[1738183883867,0.15513267,104450.0,104440.0,0.764307]
[1738183884561,0.15513267,104450.0,104440.0,0.7654]
[1738183884763,0.01414397,104450.0,104440.0,0.596107]
[1738183884968,0.20563197,104450.0,104440.0,0.596107]
[1738183885157,0.56143197,104450.0,104440.0,0.595107]
[1738183885357,0.20063197,104450.0,104440.0,0.595107]
[1738183885554,0.20063197,104450.0,104440.0,0.4036]
[1738183885752,0.20063197,104450.0,104440.0,0.67871933]
[1738183885962,0.00914397,104450.0,104440.0,0.63871933]
[1738183886162,0.00914397,104450.0,104440.0,0.68771933]
[1738183886356,0.00014397,104450.0,104440.0,0.69271933]
[1738183886555,0.36094397,104450.0,104440.0,0.60622896]
[1738183886767,0.19163197,104450.0,104440.0,0.36472196]
[1738183887079,0.55243197,104450.0,104440.0,0.008]
[1738183888364,0.56043197,104450.0,104440.0,0.001]
[1738183889565,0.19963197,104450.0,104440.0,0.20940774]
[1738183889760,0.191507,104440.0,104430.0,0.53512874]
[1738183890068,0.552307,104440.0,104430.0,0.01]
[1738183890370,0.191507,104440.0,104430.0,0.01]
[1738183890569,0.552307,104440.0,104430.0,0.01]
[1738183890767,0.552307,104440.0,104430.0,0.201525]
[1738183890958,0.191507,104440.0,104430.0,0.01]
[1738183891156,0.552307,104440.0,104430.0,0.01]
[1738183892360,0.552307,104440.0,104430.0,0.16840774]
[1738183892556,0.36894397,104450.0,104430.0,0.35993274]
[1738183892769,0.55244197,104450.0,104440.0,0.15840774]
[1738183892965,0.55244197,104450.0,104440.0,0.34840774]
[1738183893265,0.19164197,104450.0,104440.0,0.53991474]
[1738183893465,0.55244197,104450.0,104440.0,0.53991474]
[1738183893772,0.19164197,104450.0,104440.0,0.19]
[1738183894073,0.56044197,104450.0,104440.0,0.191]
[1738183896377,0.56044197,104450.0,104440.0,0.001]
[1738183896558,1.13664197,104450.0,104440.0,0.001]
[1738183897165,0.94424197,104450.0,104440.0,0.111]
[1738183897565,0.94424197,104450.0,104440.0,0.001]
[1738183898574,0.56044197,104450.0,104440.0,0.242507]
[1738183899067,0.56044197,104450.0,104440.0,0.40091474]
[1738183899268,0.56044197,104450.0,104440.0,0.242507]
[1738183899775,0.56044197,104450.0,104440.0,0.051]
[1738183899959,0.56044197,104450.0,104440.0,0.76171474]
[1738183899960,0.00814397,104450.0,104440.0,0.76171474]
[1738183900159,0.00814397,104450.0,104440.0,0.40091474]
[1738183901479,0.19963197,104450.0,104440.0,0.40091474]
[1738183902366,0.00814397,104450.0,104440.0,0.76171474]
[1738183902564,0.00814397,104450.0,104440.0,0.92012248]
[1738183902763,0.25541153,104470.0,104440.0,1.09051548]
[1738183902972,0.25541153,104470.0,104460.0,0.71067774]
[1738183903187,0.25541153,104470.0,104460.0,0.93067774]
[1738183903679,0.16793707,104480.0,104460.0,0.73920774]
[1738183903864,0.16808104,104480.0,104470.0,1.07495974]
[1738183904076,0.16808104,104480.0,104470.0,0.74270774]
[1738183904077,0.35951404,104480.0,104470.0,0.74270774]
[1738183904277,0.191452,104470.0,104450.0,0.53343571]
[1738183904465,0.552252,104470.0,104460.0,0.19147]
[1738183904669,0.560252,104470.0,104460.0,0.001]
[1738183905169,0.199452,104470.0,104460.0,0.54087774]
[1738183905477,0.008,104470.0,104460.0,0.90167774]
[1738183905677,0.00921277,104470.0,104460.0,0.54087774]
[1738183906072,0.00921277,104470.0,104460.0,0.90167774]
[1738183906275,0.55346477,104470.0,104460.0,0.53987774]
[1738183906465,0.55346477,104470.0,104450.0,0.35002971]
[1738183906666,0.19268277,104460.0,104450.0,0.56002971]
[1738183907173,0.19268277,104460.0,104450.0,0.40162197]
[1738183907672,0.55348277,104460.0,104450.0,0.40262197]
[1738183908269,0.19268277,104460.0,104450.0,0.21114397]
[1738183908470,0.55348277,104460.0,104450.0,0.21114397]
[1738183909082,0.55348277,104460.0,104450.0,0.56103971]
[1738183909374,0.00121277,104460.0,104450.0,0.92183971]
[1738183909871,0.00121277,104460.0,104450.0,0.92083971]
[1738183910280,0.19268277,104460.0,104450.0,0.56003971]
[1738183910664,0.55348277,104460.0,104450.0,0.56003971]
[1738183911280,0.00121277,104460.0,104450.0,0.92083971]
[1738183912086,0.00121277,104460.0,104450.0,0.56003971]
[1738183912377,0.19268277,104460.0,104450.0,0.56003971]
[1738183913367,0.00121277,104460.0,104450.0,0.56003971]
[1738183914570,0.19268277,104460.0,104450.0,0.56003971]
[1738183915873,0.00121277,104460.0,104450.0,0.56003971]
[1738183916786,0.00121277,104460.0,104450.0,0.40163197]
[1738183917275,0.36201277,104460.0,104450.0,0.40163197]
[1738183917476,0.36201277,104460.0,104450.0,0.21014397]
[1738183917672,0.55348277,104460.0,104450.0,0.21014397]
[1738183917877,0.52042051,104460.0,104430.0,0.27878512]
[1738183918184,0.71071474,104440.0,104430.0,0.27878512]
[1738183918779,0.55351977,104440.0,104430.0,0.27878512]
[1738183919775,0.71192751,104440.0,104430.0,0.28278512]
[1738183920179,0.71192751,104440.0,104430.0,0.29178512]
[1738183920387,0.82947781,104440.0,104420.0,0.33562697]
[1738183920687,0.191562,104410.0,104400.0,0.83313266]
[1738183920888,0.71076974,104410.0,104400.0,0.83265266]
[1738183921592,0.19159,104400.0,104380.0,0.381716]
[1738183921889,0.55361077,104390.0,104380.0,0.1901]
[1738183922389,0.55361077,104390.0,104380.0,0.19024397]
[1738183922586,0.71201851,104390.0,104380.0,0.00014397]
[1738183922779,0.88891851,104390.0,104380.0,0.00014397]
[1738183922983,1.18891851,104390.0,104380.0,0.00014397]
[1738183923281,1.18891851,104390.0,104370.0,0.33467027]
[1738183923282,0.191617,104380.0,104370.0,0.33467027]
[1738183923590,0.71082474,104380.0,104370.0,0.12339736]
[1738183923788,1.07883751,104380.0,104370.0,0.12339736]
[1738183923987,1.37883751,104380.0,104370.0,0.12339736]
[1738183924186,0.191635,104370.0,104360.0,0.36161487]
[1738183924387,0.191635,104370.0,104350.0,0.44408142]
[1738183924388,0.51920774,104370.0,104350.0,0.43338142]
[1738183924691,0.191672,104350.0,104340.0,0.73439075]
[1738183924893,0.71209251,104350.0,104340.0,0.70354562]
[1738183925086,1.01209251,104350.0,104340.0,0.70354562]
[1738183925478,1.01209251,104350.0,104340.0,0.64400397]
[1738183925686,1.01209251,104350.0,104330.0,0.55893517]
[1738183925687,0.19169,104340.0,104330.0,0.00014397]
[1738183925886,0.71211051,104340.0,104330.0,0.00014397]
[1738183926592,0.55370277,104340.0,104330.0,0.00014397]
[1738183926894,0.71211051,104340.0,104330.0,0.00014397]
[1738183927095,0.71311051,104340.0,104330.0,0.00914397]
[1738183927696,0.71311051,104340.0,104330.0,0.01414397]
[1738183927886,0.55470277,104340.0,104330.0,0.01414397]
[1738183928090,0.36301277,104340.0,104330.0,0.20585197]
[1738183928996,0.55470277,104340.0,104330.0,0.20585197]
[1738183930090,0.00221277,104340.0,104330.0,0.20585197]
[1738183930395,0.36301277,104340.0,104330.0,0.24585197]
[1738183930593,0.71311051,104340.0,104330.0,0.01414397]
[1738183931611,0.36301277,104340.0,104330.0,0.25585197]
[1738183931895,0.36301277,104340.0,104320.0,0.51920774]
[1738183932301,0.36301277,104340.0,104330.0,0.191708]
[1738183932598,0.36301277,104340.0,104310.0,0.1768]
[1738183932599,0.191727,104320.0,104310.0,0.1768]
[1738183932801,0.191745,104310.0,104300.0,0.1]
[1738183932991,0.71216551,104310.0,104300.0,0.1]
[1738183934292,0.55375777,104310.0,104300.0,0.1]
[1738183934606,0.71216551,104310.0,104300.0,0.104]
[1738183934899,0.55375777,104310.0,104300.0,0.295764]
[1738183935097,0.71216551,104310.0,104300.0,0.104]
[1738183935301,0.71216551,104310.0,104280.0,0.1801]
[1738183935302,0.9264785,104310.0,104280.0,0.1801]
[1738183935493,0.88000774,104290.0,104270.0,0.3701]
[1738183935694,0.5526,104280.0,104270.0,0.561919]
[1738183935895,0.55381277,104280.0,104270.0,0.3701]
[1738183936098,0.55381277,104280.0,104270.0,0.561919]
[1738183936494,0.55381277,104280.0,104270.0,0.601919]